[Event "34th MPL National U14-ch 2022"]
[Site "Ahmedabad"]
[Date "2022.05.11"]
[Round "6.5"]
[White "Jaidambareesh N R"]
[Black "Vaz, Ethan"]
[Result "0-1"]
[ECO "C00"]
[WhiteElo "1521"]
[BlackElo "1792"]
[Annotator "NA RC COMBH"]
[PlyCount "110"]
[EventDate "2022.05.09"]
[EventType "swiss"]
[EventCountry "IND"]
[SourceTitle "playchess.com"]
[Source "ChessBase"]
[SourceQuality "1"]
[TimeControl "5400+30"]

1. Nf3 {[%emt 0:01:00]} d5 {[%emt 0:00:12]} 2. g3 {[%emt 0:00:06]} Nf6 {[%emt 0:00:17]} 3. Bg2 {[%emt 0:00:12]} e6 {[%emt 0:00:27]} 4. O-O {[%emt 0:00:16]} c5 {[%emt 0:00:42]} 5. d3 {[%emt 0:01:05]} Nc6 {[%emt 0:00:47]} 6. Nbd2 {[%emt 0:00:13]} Be7 {[%emt 0:00:53]} 7. e4 {[%emt 0:00:45]} O-O {[%emt 0:01:48]} 8. Re1 {[%emt 0:00:33]} Re8 {[%emt 0:04:35]} 9. c3 {[%emt 0:02:37]} b6 {[%emt 0:03:38]} 10. e5 {[%emt 0:00:50]} Nd7 {[%emt 0:01:16]} 11. d4 {[%emt 0:00:08]} Bb7 {[%emt 0:01:48]} 12. h4 {[%emt 0:01:40]} Rc8 {[%emt 0:02:29]} 13. a3 {[%emt 0:00:57]} a5 {[%emt 0:05:56]} 14. Nf1 {[%emt 0:00:13]} b5 {[%emt 0:02:42]} 15. N1h2 {[%emt 0:01:23]} b4 {[%emt 0:04:11]} 16. h5 {[%emt 0:03:00]} bxc3 {[%emt 0:15:46]} 17. bxc3 {[%emt 0:00:08]} h6 {[%emt 0:02:53]} 18. Ng4 {[%emt 0:00:52]} Bf8 {[%emt 0:09:08]} 19. Bf1 {[%emt 0:04:20]} c4 {[%emt 0:05:33]} 20. Bf4 {[%emt 0:05:59]} Rb8 {[%emt 0:07:11]} 21. Nfh2 {[%emt 0:05:51]} Ba6 {[%emt 0:06:15]} 22. a4 {[%emt 0:05:47]} Qb6 {[%emt 0:08:29]} 23. Qd2 {[%emt 0:03:58]} Qb2 {[%emt 0:02:21]} 24. Qe3 {[%emt 0:00:19]} Qc2 {[%emt 0:02:41]} 25. Be2 {[%emt 0:03:58]} Rb2 {[%emt 0:01:03]} 26. Bd1 {[%emt 0:00:04]} Qd3 {[%emt 0:00:40]} 27. Qc1 {[%emt 0:02:29]} Reb8 {[%emt 0:00:35]} 28. Ne3 {[%emt 0:03:45]} Rb1 {[%emt 0:01:04]} 29. Bc2 {[%emt 0:12:26]} Rxc1 {[%emt 0:00:10]} 30. Rexc1 {[%emt 0:00:14]} Qxc3 {[%emt 0:04:22]} 31. Bh7+ {[%emt 0:00:12]} Kxh7 {[%emt 0:00:01]} 32. Rxc3 {[%emt 0:00:01]} Nxd4 {[%emt 0:00:11]} 33. Kg2 {[%emt 0:02:02]} Bb4 {[%emt 0:00:35]} 34. Rcc1 {[%emt 0:00:50]} Nb3 {[%emt 0:00:27]} 35. Nf3 {[%emt 0:00:32]} d4 {[%emt 0:01:24]} 36. Nxd4 {[%emt 0:01:24]} Nxd4 {[%emt 0:00:08]} 37. Rd1 {[%emt 0:00:16]} Nb3 {[%emt 0:00:12]} 38. Ra2 {[%emt 0:02:02]} Ndc5 {[%emt 0:00:15]} 39. Rc2 {[%emt 0:00:15]} c3 {[%emt 0:00:14]} 40. Rd6 {[%emt 0:01:05]} Bb7+ {[%emt 0:00:24]} 41. Kh3 {[%emt 0:00:05]} Be4 {[%emt 0:00:13]} 42. Ra2 {[%emt 0:00:10]} Nc1 {[%emt 0:00:39]} 43. Ra1 {[%emt 0:00:06]} N5b3 {[%emt 0:00:04]} 44. Rxc1 {[%emt 0:38:22]} Nxc1 {[%emt 0:00:03]} 45. Rd7 {[%emt 0:00:00]} Rb7 {[%emt 0:00:15]} 46. Rd4 {[%emt 0:00:00]} Bc6 {[%emt 0:00:19]} 47. Rc4 {[%emt 0:00:00]} Bd5 {[%emt 0:00:47]} 48. Rc8 {[%emt 0:00:00]} Ne2 {[%emt 0:00:26]} 49. Bxh6 {[%emt 0:00:00]} gxh6 {[%emt 0:00:29]} 50. f4 {[%emt 0:00:00]} Be4 {[%emt 0:00:17]} 51. Kh4 {[%emt 0:00:00]} Be7+ {[%emt 0:00:57]} 52. Kh3 {[%emt 0:04:00]} Rb1 {[%emt 0:00:37]} 53. Rc7 {[%emt 0:00:00]} Bf3 {[%emt 0:00:13]} 54. Ng4 {[%emt 0:00:00]} Rh1+ {[%emt 0:00:06]} 55. Nh2 {[%emt 0:00:00]} Ng1# {[%emt 0:00:03]} 0-1

[Event "34th MPL National U14-ch 2022"]
[Site "Ahmedabad"]
[Date "2022.05.11"]
[Round "6.6"]
[White "Md Imran"]
[Black "Pranav K P"]
[Result "1-0"]
[ECO "E06"]
[WhiteElo "2122"]
[BlackElo "1548"]
[Annotator "TA"]
[PlyCount "93"]
[EventDate "2022.05.09"]
[EventType "swiss"]
[EventCountry "IND"]
[SourceTitle "playchess.com"]
[Source "ChessBase"]
[SourceQuality "1"]
[TimeControl "5400+30"]

{[%evp 18,92,50,53,116,108,116,106,118,105,114,111,109,117,117,111,110,77,77,66,192,136,133,142,293,295,277,285,290,286,353,375,410,393,396,402,389,283,484,469,463,468,591,579,679,670,839,816,839,833,862,824,1401,1306,5163,839,837,804,29965,29964,29969,29970,29980,29980,29989,29990,29992,29993,29993,29994,29995,29996,29996,29997,29998,29999,29999]} 1. d4 {[%emt 0:00:25]} Nf6 {[%emt 0:00:22]} 2. Nf3 {[%emt 0:00:31]} e6 {[%emt 0:00:19]} 3. g3 {[%emt 0:00:16]} c5 {[%emt 0:01:00]} 4. Bg2 {[%emt 0:00:10]} Be7 {[%emt 0:00:47]} 5. O-O {[%emt 0:00:06]} O-O {[%emt 0:00:15]} 6. c4 {[%emt 0:00:05]} d5 {[%emt 0:00:42]} 7. cxd5 {[%emt 0:01:38]} Nxd5 {[%emt 0:02:52]} 8. e4 {[%emt 0:02:27]} Nf6 {[%emt 0:00:28]} 9. Nc3 {[%emt 0:02:39]} cxd4 {[%emt 0:02:57]} 10. Nxd4 {[%emt 0:00:18]} Nbd7 {[%emt 0:04:12] E06: Closed Catalan: Early deviations.} (10... e5 $14 11. Nf5 Bxf5 12. exf5 Nc6) 11. Qe2 $16 {[%emt 0:05:07]} Bc5 {[%emt 0:14:10]} 12. Rd1 {[%emt 0:05:56]} Bxd4 {[%emt 0:02:22] White is better.} 13. Rxd4 {[%emt 0:00:19]} e5 {[%emt 0:00:29] Inhibits Bf4.} 14. Rd1 {[%emt 0:01:39] White is much more active. The black rooks are badly placed.} Qe7 {[%emt 0:06:18]} 15. Bg5 {[%emt 0:02:44] [#] Strongly threatening Nd5.} Nb6 {[%emt 0:00:47]} 16. a4 {[%emt 0:05:33] And now a5 would win.} Be6 {[%emt 0:04:25] [#]} 17. Nd5 $146 {[%emt 0:01:25]} ({Predecessor:} 17. a5 Nbd7 18. Qb5 h6 19. Be3 Ng4 20. Nd5 Bxd5 21. Rxd5 Ngf6 22. Bc5 Nxc5 23. Rxc5 {0-1 (42) Pijuan Herranz,M (2222)-Pinyol Clapera,D Barcelona 2018}) 17... Bxd5 {[%emt 0:01:19]} 18. exd5 {[%emt 0:00:05] Threatens to win with d6.} Qd6 {[%emt 0:00:46]} (18... Nc8 $14) 19. a5 {[%emt 0:04:25]} (19. Bxf6 $18 Qxf6 20. d6) 19... Nbd7 {[%emt 0:01:22]} 20. Qb5 $36 {[%emt 0:00:35][%mdl 2048] White has strong initiative.} Qa6 $2 {[%emt 0:07:45] Loses the game.} (20... Rab8 $16 21. Rac1 a6) 21. Qxa6 $18 {[%emt 0:04:37]} bxa6 {[%emt 0:00:05]} 22. Rac1 {[%emt 0:00:05]} Rab8 {[%emt 0:03:30]} 23. Rc7 {[%emt 0:00:53]} Rxb2 {[%emt 0:00:30]} 24. d6 {[%emt 0:00:17]} (24. Rxa7 h6 $18) 24... e4 {[%emt 0:01:32]} 25. Bxf6 {[%emt 0:03:17]} Nxf6 {[%emt 0:00:13]} 26. d7 {[%emt 0:00:01]} Rbb8 {[%emt 0:00:53]} 27. Bh3 {[%emt 0:00:28][%cal Oc7b7] Hoping for Rb7!} g5 $2 {[%emt 0:00:38]} (27... h5 28. Rxa7 Rfd8 29. Rxa6 Kf8) 28. Bf5 {[%emt 0:00:26]} ({Less strong is} 28. Rxa7 Rfd8 29. Rxa6 g4 30. Rxf6 gxh3 $18) 28... Kg7 {[%emt 0:02:07]} 29. g4 {[%emt 0:00:25]} ({Weaker is} 29. Rxa7 Rb5 30. d8=Q Rxd8 31. Rxd8 Rxf5 32. Rxa6 Ng4 $18) 29... Kg8 {[%emt 0:04:09]} 30. Rxa7 {[%emt 0:00:15]} Kg7 {[%emt 0:01:46]} 31. Rxa6 {[%emt 0:01:17]} h5 {[%emt 0:03:51]} 32. gxh5 {[%emt 0:00:22]} Nxh5 {[%emt 0:00:08]} 33. Bxe4 {[%emt 0:00:29][%cal Oa6a8]} Nf4 {[%emt 0:01:13]} 34. Rb6 {[%emt 0:00:15] [#] aiming for Rxb8.} Rxb6 {[%emt 0:00:49]} 35. axb6 {[%emt 0:00:01][%mdl 4096] Endgame KRB-KRN} Ne6 {[%emt 0:00:26]} 36. Bd5 {[%emt 0:00:15]} (36. Rc1 $142 Rb8 37. b7) 36... Nc5 {[%emt 0:00:25]} 37. Bf3 {[%emt 0:01:34]} Ne6 {[%emt 0:00:47]} 38. Rc1 {[%emt 0:00:08] White mates.} Rb8 {[%emt 0:00:42]} 39. b7 {[%emt 0:00:25]} Nd4 {[%emt 0:00:42]} 40. Kg2 {[%emt 0:01:39]} Nxf3 {[%emt 0:01:59]} 41. Kxf3 {[%emt 0:00:04]} Rxb7 {[%emt 0:00:11]} 42. d8=Q {[%emt 0:00:01]} Rb3+ {[%emt 0:01:12]} 43. Kg2 {[%emt 0:00:04]} Rb4 {[%emt 0:00:30]} 44. Qxg5+ {[%emt 0:00:30]} Kh7 {[%emt 0:00:18]} 45. Rc3 {[%emt 0:00:00]} Rb6 {[%emt 0:00:30]} 46. Rh3+ {[%emt 0:00:04]} Rh6 {[%emt 0:00:30]} 47. Rxh6# {[%emt 0:00:30] Weighted Error Value: White=0.10 (very precise) /Black=0.61} 1-0

[Event "34th MPL National U14-ch 2022"]
[Site "Ahmedabad"]
[Date "2022.05.11"]
[Round "6.7"]
[White "Daakshin Arun"]
[Black "Aswath S"]
[Result "0-1"]
[ECO "D45"]
[WhiteElo "2016"]
[BlackElo "1694"]
[Annotator "TA"]
[PlyCount "90"]
[EventDate "2022.05.09"]
[EventType "swiss"]
[EventCountry "IND"]
[SourceTitle "playchess.com"]
[Source "ChessBase"]
[SourceQuality "1"]
[TimeControl "5400+30"]

{[%evp 14,90,0,0,0,0,0,0,0,0,15,11,21,16,15,22,22,21,21,0,15,-4,20,22,19,7,23,27,43,30,38,36,58,75,79,15,11,11,27,-86,-80,-124,-26,-44,-25,-37,-23,-33,-47,-59,-58,-196,-195,-389,-387,-385,-381,-807,-798,-1229,-1187,-2062,-1995,-1940,-1925,-1925,-1779,-4882,-4790,-1677,-1320,-1320,-1313,-1306,-1264,-1190,-1190,-29987,-29988]} 1. d4 {[%emt 0:00:03]} d5 {[%emt 0:00:12]} 2. c4 {[%emt 0:00:08]} e6 {[%emt 0:00:06]} 3. Nf3 {[%emt 0:00:12]} c6 {[%emt 0:00:06]} 4. e3 {[%emt 0:00:05]} Nf6 {[%emt 0:00:08]} 5. Nc3 {[%emt 0:00:04]} Nbd7 {[%emt 0:00:04]} 6. Be2 {[%emt 0:00:04][%cal Bf1e2,Be2d3,Bd3f5][%mdl 32]} Bd6 {[%emt 0:00:07]} 7. O-O {[%emt 0:00:07]} O-O {[%emt 0:00:43]} 8. b3 {[%emt 0:00:07]} b6 {[%emt 0:04:04] D45: Semi-Slav: 5 e3.} 9. Bb2 {[%emt 0:00:06]} Bb7 {[%emt 0:00:07]} 10. Bd3 {[%emt 0:00:19]} Rc8 {[%emt 0:06:49] The position is equal.} 11. Rc1 {[%emt 0:01:43]} Re8 {[%emt 0:00:41]} 12. Re1 {[%emt 0:00:04]} e5 {[%emt 0:01:04]} 13. dxe5 {[%emt 0:01:24]} Nxe5 {[%emt 0:00:13]} 14. Bf5 {[%emt 0:00:59]} Rc7 {[%emt 0:03:09]} 15. cxd5 {[%emt 0:00:35] [#]} cxd5 $146 {[%emt 0:00:59]} ({Predecessor:} 15... Nxd5 16. Nxd5 cxd5 17. Nxe5 Bxe5 18. Bxe5 Rxe5 19. Rxc7 Qxc7 20. Bg4 Qc3 21. Bf3 Ba6 {0-1 (84) Omelja,A (2515)-Hamley,R (2077) Chess.com INT 2022}) 16. Nd4 {[%emt 0:05:36]} a6 {[%emt 0:01:37] Against Ndb5} 17. Qe2 {[%emt 0:04:34]} Ng6 {[%emt 0:06:26]} 18. Red1 {[%emt 0:02:34]} b5 {[%emt 0:11:08]} 19. Nb1 {[%emt 0:05:02]} Qb8 {[%emt 0:07:17][%cal Od6h2]} 20. g3 {[%emt 0:03:42]} Ne4 {[%emt 0:04:48]} 21. Bh3 {[%emt 0:05:54]} Bc8 {[%emt 0:07:55]} 22. Bg2 {[%emt 0:02:21]} Ne5 {[%emt 0:04:45]} 23. Rxc7 {[%emt 0:02:19]} Bxc7 {[%emt 0:00:46]} 24. Rc1 {[%emt 0:05:40]} (24. Nc3 $16) 24... Bb6 $11 {[%emt 0:01:20]} 25. h3 {[%emt 0:07:39]} Bd7 {[%emt 0:05:25]} 26. Kh2 {[%emt 0:02:58]} (26. Nc3 $11 Qb7 27. Qc2) 26... Qd6 $1 $17 {[%emt 0:08:04] White must now prevent ...Qh6.} 27. f4 {[%emt 0:06:33] [#]} Ng6 {[%emt 0:01:41] Black is more active.} (27... Nxg3 $1 $17 {[%mdl 512]} 28. Qf2 (28. Kxg3 Qg6+ 29. Kh2 Nd3 $17) (28. fxe5 $2 Nxe2 29. exd6 Nxc1 $19) 28... Nd3 29. Qxg3 Nxb2) 28. Qe1 $11 {[%emt 0:04:17]} b4 {[%emt 0:04:28]} 29. Rd1 {[%emt 0:04:40]} Qe7 {[%emt 0:01:29]} 30. Nc2 {[%emt 0:01:49]} a5 {[%emt 0:03:52]} 31. Rxd5 {[%emt 0:00:49]} Rc8 $1 {[%emt 0:01:20]} 32. Nd4 {[%emt 0:02:29] [#] This costs White the game.} (32. Na1 $1 $15 Bc6 33. Rd1) 32... Nf6 $1 $19 {[%emt 0:00:48]} 33. Nf5 $2 {[%emt 0:03:45]} (33. Rxd7 {was necessary.} Qxd7 34. a4) 33... Bxf5 {[%emt 0:00:05]} 34. Rxf5 {[%emt 0:00:06]} Rc2 {[%emt 0:00:35]} 35. Be5 {[%emt 0:02:07]} (35. Rb5 Rxb2 36. Rxb6) 35... Qd7 {[%emt 0:01:43]} 36. e4 {[%emt 0:03:38]} Qd3 {[%emt 0:00:29]} 37. Bxf6 {[%emt 0:07:07]} Bf2 {[%emt 0:00:33]} 38. Qf1 {[%emt 0:01:27]} Qxg3+ {[%emt 0:00:07]} 39. Kh1 {[%emt 0:00:03]} gxf6 {[%emt 0:01:02]} 40. Qd1 {[%emt 0:01:16] [#]} Bd4 $1 {[%emt 0:00:09][%csl Gc2][%cal Rg3g2][%mdl 512]} 41. Nd2 {[%emt 0:04:23] [#]} Qf2 $1 {[%emt 0:00:39][%cal Og6h4] ( -> ...Nh4!)} 42. Rd5 {[%emt 0:02:28]} Rxd2 {[%emt 0:00:10][%csl Gd2][%cal Rf2g2]} 43. Qf1 {[%emt 0:00:18]} Qxf1+ {[%emt 0:00:07]} 44. Bxf1 {[%emt 0:00:03]} Nxf4 {[%emt 0:00:22]} 45. Rxa5 {[%emt 0:00:17]} Rd1 {[%emt 0:00:13][%csl LRf1,LRh3] Weighted Error Value: White=0.78/Black=0.07 (flawless)} 0-1

[Event "34th MPL National U14-ch 2022"]
[Site "Ahmedabad"]
[Date "2022.05.11"]
[Round "6.8"]
[White "Medhvansh Madeti"]
[Black "Mayank Chakraborty"]
[Result "0-1"]
[ECO "B23"]
[WhiteElo "1302"]
[BlackElo "2015"]
[Annotator "TA"]
[PlyCount "88"]
[EventDate "2022.05.09"]
[EventType "swiss"]
[EventCountry "IND"]
[SourceTitle "playchess.com"]
[Source "ChessBase"]
[SourceQuality "1"]
[TimeControl "5400+30"]

{[%evp 15,87,0,27,-18,-20,-18,2,0,35,8,14,32,-6,-169,-162,-277,-275,-274,-258,-255,-247,-297,-304,-288,-162,-177,-123,-118,-122,-115,-12,0,0,0,0,0,-11,-4,0,-28,-14,-57,80,70,87,0,0,0,0,-67,-26,-27,0,-625,-724,-1065,-1052,-4775,-4775,-29983,-29984,-29989,-29990,-29991,-29991,-29994,-29995,-29996,-29995,-29996,-29997,-29998,-29999,-29999]} 1. e4 {[%emt 0:00:03]} c5 {[%emt 0:00:04]} 2. Nc3 {[%emt 0:00:04]} d6 {[%emt 0:00:04]} 3. f4 {[%emt 0:00:06]} g6 {[%emt 0:00:04]} 4. Nf3 {[%emt 0:00:07]} Bg7 {[%emt 0:00:06]} 5. Bc4 {[%emt 0:00:13]} Nc6 {[%emt 0:00:14][%cal Bb8c6,Bc6d4,Bd4c2][%mdl 32]} 6. O-O {[%emt 0:00:07]} Nf6 {[%emt 0:00:33]} 7. d3 {[%emt 0:00:04]} O-O {[%emt 0:00:10]} 8. Qe1 {[%emt 0:00:07]} Nd4 {[%emt 0:00:17]} 9. Qh4 {[%emt 0:00:27][%cal Of4f5] B23: Closed Sicilian: Lines without g3.} Nxc2 {[%emt 0:06:07]} 10. Rb1 {[%emt 0:00:08]} e6 {[%emt 0:05:48]} 11. f5 $1 {[%emt 0:01:34] The position is equal.} d5 {[%emt 0:03:18]} (11... exf5 $5 {[%cal Rc2d4]} 12. Bg5 Be6 $11) 12. Bb3 {[%emt 0:02:11] [#]} (12. e5 {is more complex.} dxc4 13. Bg5 exf5 14. dxc4 h6 15. Bxf6 g5 16. Bxd8 gxh4 17. Be7) 12... Nd4 $146 {[%emt 0:03:45]} ({Predecessor:} 12... dxe4 13. dxe4 Nd4 14. fxg6 fxg6 15. Bg5 Nxb3 16. axb3 Qc7 17. Nd2 Nd7 18. Be7 Rxf1+ 19. Rxf1 {1-0 (27) Kranenburg,L-Van Oosterom,C (2383) Delft 2012}) 13. Bg5 {[%emt 0:01:03] [#] Threatens to win with Nxd4.} dxe4 {[%emt 0:14:24]} (13... gxf5 $2 14. e5 h6 15. Bxf6 Bxf6 16. exf6 $18) 14. Nxe4 {[%emt 0:09:05]} (14. dxe4 $11 {and White has nothing to worry.} h6 15. Bxh6 exf5 16. Ng5) 14... Nxf5 $19 {[%emt 0:01:34]} 15. Bxf6 {[%emt 0:01:04]} (15. Qf4 {might work better.}) 15... Nxh4 {[%emt 0:00:20]} 16. Bxd8 {[%emt 0:00:07]} Nxf3+ {[%emt 0:00:02]} 17. Rxf3 {[%emt 0:01:19]} Rxd8 {[%emt 0:00:03]} 18. Ng5 {[%emt 0:01:53]} Rf8 {[%emt 0:06:38]} 19. Rbf1 {[%emt 0:01:03][%cal Rf3f7]} Bxb2 {[%emt 0:04:21]} (19... b5 $142 {...a5 is the strong threat.} 20. Rxf7 Rxf7 21. Nxf7 a5) 20. Nxf7 {[%emt 0:02:34]} Bd7 {[%emt 0:00:55]} (20... Bd4+ $19 21. Kh1 Kg7) 21. Nh6+ $17 {[%emt 0:01:47]} Kg7 {[%emt 0:00:15]} 22. Rf7+ {[%emt 0:00:26]} Kxh6 {[%emt 0:00:02]} (22... Rxf7 $17 23. Rxf7+ Kxh6 24. Rxd7 Bd4+ 25. Kh1 b5) 23. Rxf8 $11 {[%emt 0:00:26]} Bd4+ {[%emt 0:00:01]} 24. Kh1 {[%emt 0:00:48]} Rxf8 {[%emt 0:00:05]} 25. Rxf8 {[%emt 0:00:17][%mdl 4096] Endgame KRB-KB} e5 {[%emt 0:03:33]} 26. Rf7 {[%emt 0:04:31]} Bb5 {[%emt 0:01:54] This bishop pair is nice.} 27. Bc4 {[%emt 0:01:28]} Bc6 {[%emt 0:00:07]} 28. h4 {[%emt 0:08:14]} e4 {[%emt 0:05:52]} (28... g5 $1 $15 {stays ahead.}) 29. dxe4 $16 {[%emt 0:02:38]} Bxe4 {[%emt 0:00:10] [#]} 30. Re7 {[%emt 0:05:20]} (30. Kh2 $1 $16) 30... Bc6 $11 {[%emt 0:00:07]} 31. Bg8 {[%emt 0:01:13][%csl Gg8][%cal Re7h7]} Kh5 {[%emt 0:00:25]} 32. Bxh7 {[%emt 0:15:16]} (32. Rxh7+ $11 Kg4 33. Kh2) 32... c4 {[%emt 0:07:12][%cal Bc5c4,Bc4c3,Bc3c2][%mdl 32]} (32... Kxh4 $5 {[%cal Rh4g3]} 33. Kh2 (33. Bxg6 $2 Kg3 $19) 33... Kg5 $17) 33. Re6 $1 {[%emt 0:03:43]} Kxh4 {[%emt 0:00:28] Hoping for ...Kg3.} (33... c3 $5 {[%cal Rh5h4]}) 34. Bxg6 $2 {[%emt 0:04:35][%mdl 8192]} (34. Rxg6 $11 c3 35. Rg8) 34... Kg3 $19 {[%emt 0:00:45][%csl Gg3][%cal Rc6g2]} 35. Re2 {[%emt 0:03:10]} c3 {[%emt 0:00:23] aiming for ...b5.} 36. Rc2 {[%emt 0:09:18]} b5 {[%emt 0:00:13][%cal Bb7b5,Bb5b4,Bb4b3][%mdl 32] ( -> ...b4)} 37. Bd3 {[%emt 0:02:54]} b4 {[%emt 0:00:23] Black mates.} 38. Bf1 {[%emt 0:05:00]} Be4 {[%emt 0:00:25]} 39. Rc1 {[%emt 0:07:45]} c2 {[%emt 0:00:10]} 40. a3 {[%emt 0:01:45]} b3 {[%emt 0:00:04]} 41. a4 {[%emt 0:00:36]} Be3 {[%emt 0:00:07]} 42. a5 {[%emt 0:03:07]} Bxc1 {[%emt 0:00:13]} 43. a6 {[%emt 0:00:06]} Be3 {[%emt 0:00:05]} 44. Bd3 {[%emt 0:00:35]} Bxg2# {[%emt 0:00:05] Weighted Error Value: White=0.84/Black=0.19 (very precise)} 0-1

[Event "34th MPL National U14-ch 2022"]
[Site "Ahmedabad"]
[Date "2022.05.11"]
[Round "6.9"]
[White "Ankit Ray"]
[Black "Kavin Oviyan R"]
[Result "1/2-1/2"]
[ECO "E05"]
[WhiteElo "1932"]
[BlackElo "1299"]
[Annotator "TA"]
[PlyCount "70"]
[EventDate "2022.05.09"]
[EventType "swiss"]
[EventCountry "IND"]
[SourceTitle "playchess.com"]
[Source "ChessBase"]
[SourceQuality "1"]
[TimeControl "5400+30"]

{[%evp 19,70,10,24,6,6,6,6,6,5,7,36,8,8,8,16,4,7,12,22,8,8,8,14,-21,0,0,0,-61,-52,-59,-54,-41,-47,-47,-5,-10,-14,0,0,0,14,0,16,0,28,27,18,9,16,-5,0,0,0]} 1. d4 {[%emt 0:00:20] CB} e6 {[%emt 0:00:29]} 2. Nf3 {[%emt 0:00:18]} Nf6 {[%emt 0:00:40]} 3. g3 {[%emt 0:00:43]} d5 {[%emt 0:00:53]} 4. Bg2 {[%emt 0:00:57]} Be7 {[%emt 0:00:06]} 5. O-O {[%emt 0:00:12]} O-O {[%emt 0:00:12]} 6. c4 {[%emt 0:03:30]} dxc4 {[%emt 0:00:28]} 7. Qc2 {[%emt 0:01:14]} a6 {[%emt 0:00:16]} 8. a4 {[%emt 0:01:03]} Bd7 {[%emt 0:01:03]} 9. Qxc4 {[%emt 0:01:12]} Bc6 {[%emt 0:00:08]} 10. Bg5 {[%emt 0:00:55]} Bd5 {[%emt 0:00:14]} 11. Qc1 {[%emt 1:25:36] E05: Open Catalan: 5 Nf3 Be7.} Nc6 {[%emt 0:02:32]} 12. e3 {[%emt 0:00:00]} h6 {[%emt 0:00:24]} 13. Bxf6 {[%emt 0:00:00]} Bxf6 {[%emt 0:00:04] [#]} 14. Nc3 $146 {[%emt 0:00:00]} ({Predecessor:} 14. Nbd2 Nb4 15. a5 b6 16. Qc3 Be7 17. e4 Bb7 18. Ne5 c5 19. dxc5 bxc5 20. Nb3 {½-½ (50) Lagno,K (2548)-Batchimeg,T (2298) Geneve 2013 CBM 154 Extra [CB]}) 14... Bc4 {[%emt 0:09:08]} 15. Rd1 {[%emt 0:00:00]} (15. Re1 $5 {[%cal Rc3e4]}) 15... Bb3 {[%emt 0:03:58]} 16. Re1 {[%emt 0:00:00] Hoping for Ne4.} Nb4 {[%emt 0:02:58]} 17. Re2 {[%emt 0:00:00]} c5 {[%emt 0:05:15][%cal Rc5d4]} 18. Ne4 {[%emt 0:00:00]} cxd4 {[%emt 0:00:41] [#] And now ...Rc8 would win.} 19. Nxf6+ {[%emt 0:00:00]} Qxf6 {[%emt 0:00:12]} 20. Nxd4 {[%emt 0:00:00]} Bd5 {[%emt 0:06:01]} 21. Qc7 {[%emt 0:00:00]} Bxg2 {[%emt 0:10:42]} (21... Rac8 $5 {[%cal Rc8c7]} 22. Qb6 Bxg2 23. Kxg2 Qe7 $11) 22. Kxg2 {[%emt 0:00:00]} e5 {[%emt 0:00:38]} 23. Nb3 {[%emt 0:00:00]} ({Not} 23. Qxb7 $2 Rfb8 24. Qf3 exd4 $19) (23. Qc4 $11) 23... Qe6 $15 {[%emt 0:10:27]} 24. Nd2 {[%emt 0:00:00]} Nd5 {[%emt 0:07:19]} 25. Qc4 {[%emt 0:00:00]} ({Wrong is} 25. Qxb7 $2 Rfb8 26. Qxa8 Rxa8 $19) 25... Rac8 {[%emt 0:03:01]} 26. Qb3 {[%emt 0:00:00]} Qc6 {[%emt 0:00:48] [#] ( -> ...Nf4+)} 27. e4 {[%emt 0:00:00]} Nf6 {[%emt 0:04:46]} 28. Rae1 {[%emt 0:00:00]} Rfd8 {[%emt 0:05:12][%cal Od8d2]} 29. Nf3 {[%emt 0:00:00]} Qc7 {[%emt 0:03:53]} 30. Re3 {[%emt 0:00:00]} Qd6 {[%emt 0:05:42]} 31. h3 {[%emt 0:00:00]} b5 {[%emt 0:02:38]} 32. axb5 {[%emt 0:00:00]} Rb8 {[%emt 0:00:05]} 33. Qa3 {[%emt 0:00:00] The position is equal.} Rxb5 {[%emt 0:00:17]} 34. Qa2 {[%emt 0:00:00]} Rdb8 {[%emt 0:02:49]} 35. R1e2 {[%emt 0:00:00]} Qb6 {[%emt 0:00:48] Weighted Error Value: White=0.09 (flawless) /Black=0.08 (flawless)} 1/2-1/2